fUSD/lending_fUSD_20250720
["ID","MTS","AMOUNT","RATE_DAILY","PERIOD"]
[373547091,1753036255385,-480.0,0.00019178,2]
[373547093,1753036255395,-480.0,0.00019178,2]
[373547095,1753036255404,-400.0,0.00019178,2]
[373547097,1753036255413,-480.0,0.00019178,2]
[373547099,1753036255422,-480.0,0.00019178,2]
[373547101,1753036255432,-1248.53,0.00019178,2]
[373547103,1753036255442,-929.61,0.00019178,2]
[373547105,1753036255451,-480.0,0.00019178,2]
[373547107,1753036255461,-480.0,0.00019178,2]
[373547109,1753036255470,-480.0,0.00019178,2]
[373547111,1753036255479,-480.0,0.00019178,2]
[373547113,1753036255488,-487.78,0.00019178,2]
[373547115,1753036255498,-1823.43,0.00019178,2]
[373547117,1753036255507,-488.36,0.00019178,2]
[373547119,1753036255516,-480.0,0.00019178,2]
[373547121,1753036255525,-480.0,0.00019178,2]
[373547123,1753036255534,-441.71481716,0.00019178,2]
[373547125,1753036255544,-480.0,0.00019178,2]
[373547127,1753036255553,-151.0,0.00019178,2]
[373547129,1753036255562,-151.0,0.00019178,2]
[373547131,1753036255572,-480.0,0.00019178,2]
[373547133,1753036255580,-480.0,0.00019178,2]
[373547134,1753036255590,-500.0,0.00019178,2]
[373547136,1753036255600,-500.0,0.00019178,2]
[373547138,1753036255609,-500.0,0.00019178,2]
[373547140,1753036255619,-302.92496345,0.00019178,2]
[373547142,1753036255628,-320.81752647,0.00019178,2]
[373547144,1753036255637,-1390.5,0.00019178,2]
[373547146,1753036255646,-480.0,0.00019178,2]
[373547148,1753036255655,-480.0,0.00019178,2]
[373547150,1753036255665,-1000.02,0.00019178,2]
[373547152,1753036255675,-151.0,0.00019178,2]
[373547154,1753036255684,-151.0,0.00019178,2]
[373547156,1753036255693,-480.0,0.00019178,2]
[373547157,1753036255704,-440.0,0.00019178,2]
[373547158,1753036255714,-973.59,0.00019178,2]
[373547159,1753036255723,-2867.6,0.00019178,2]
[373547160,1753036255733,-480.0,0.00019178,2]
[373547161,1753036255743,-480.0,0.00019178,2]
[373547162,1753036255752,-480.0,0.00019178,2]
[373547163,1753036255761,-480.0,0.00019178,2]
[373547164,1753036255769,-480.0,0.00019178,2]
[373547165,1753036255779,-480.0,0.00019178,2]
[373547166,1753036255788,-480.0,0.00019178,2]
[373547167,1753036255797,-480.0,0.00019178,2]
[373547168,1753036255806,-480.0,0.00019178,2]
[373547169,1753036255815,-480.0,0.00019178,2]
[373547171,1753036255825,-500.0,0.00019178,2]
[373547173,1753036255834,-1990.37,0.00019178,2]
[373547175,1753036255843,-500.0,0.00019178,2]
[373547177,1753036255855,-568.66,0.00019178,2]
[373547178,1753036255865,-480.0,0.00019178,2]
[373547181,1753036255876,-500.0,0.00019178,2]
[373547183,1753036255885,-327.0802331,0.00019178,2]
[373547184,1753036255894,-480.0,0.00019178,2]
[373547186,1753036255902,-480.0,0.00019178,2]
[373547188,1753036255911,-480.0,0.00019178,2]
[373547190,1753036255920,-567.6,0.00019178,2]
[373547192,1753036255930,-344.96332073,0.00019178,2]
[373547195,1753036255939,-480.0,0.00019178,2]
[373547197,1753036255949,-1583.76,0.00019178,2]
[373547199,1753036255958,-480.0,0.00019178,2]
[373547200,1753036255975,-480.0,0.00019178,2]
[373547202,1753036255984,-480.0,0.00019178,2]
[373547205,1753036255993,-480.0,0.00019178,2]
[373547207,1753036256003,-480.0,0.00019178,2]
[373547208,1753036256012,-480.0,0.00019178,2]
[373547210,1753036256021,-366.34189794,0.00019178,2]
[373547213,1753036256030,-480.0,0.00019178,2]
[373547215,1753036256040,-480.0,0.00019178,2]
[373547216,1753036256049,-330.94225555,0.00019178,2]
[373547218,1753036256058,-480.0,0.00019178,2]
[373547220,1753036256067,-462.28067859,0.00019178,2]
[373547223,1753036256077,-910.64,0.00019178,2]
[373547225,1753036256087,-480.0,0.00019178,2]
[373547227,1753036256096,-480.0,0.00019178,2]
[373547229,1753036256107,-480.0,0.00019178,2]
[373547231,1753036256115,-480.0,0.00019178,2]
[373547233,1753036256125,-2541.59,0.00019178,2]
[373547235,1753036256135,-480.0,0.00019178,2]
[373547237,1753036256144,-480.0,0.00019178,2]
[373547239,1753036256153,-480.0,0.00019178,2]
[373547241,1753036256163,-568.39,0.00019178,2]
[373547243,1753036256172,-480.0,0.00019178,2]
[373547244,1753036256181,-480.0,0.00019178,2]
[373547246,1753036256190,-656.1,0.00019178,2]
[373547249,1753036256199,-480.0,0.00019178,2]
[373547250,1753036256210,-5593.01,0.00019178,2]
[373547252,1753036256220,-480.0,0.00019178,2]
[373547255,1753036256229,-480.0,0.00019178,2]
[373547256,1753036256238,-480.0,0.00019178,2]
[373547259,1753036256247,-480.0,0.00019178,2]
[373547260,1753036256257,-500.0,0.00019178,2]
[373547263,1753036256266,-480.0,0.00019178,2]
[373547265,1753036256276,-480.0,0.00019178,2]
[373547266,1753036256284,-480.0,0.00019178,2]
[373547269,1753036256294,-480.0,0.00019178,2]
[373547271,1753036256303,-480.0,0.00019178,2]
[373547273,1753036256312,-3135.72,0.00019178,2]
[373547275,1753036256322,-480.0,0.00019178,2]
[373547277,1753036256331,-871.13,0.00019178,2]
[373547278,1753036256342,-480.0,0.00019178,2]
[373547281,1753036256353,-480.0,0.00019178,2]
[373547282,1753036256362,-467.11211984,0.00019178,2]
[373547285,1753036256371,-1815.58,0.00019178,2]
[373547286,1753036256381,-480.0,0.00019178,2]
[373547289,1753036256390,-480.0,0.00019178,2]
[373547291,1753036256399,-480.0,0.00019178,2]
[373547292,1753036256408,-463.2172402,0.00019178,2]
[373547294,1753036256417,-480.0,0.00019178,2]
[373547296,1753036256427,-480.0,0.00019178,2]
[373547298,1753036256436,-480.0,0.00019178,2]
[373547300,1753036256445,-817.33,0.00019178,2]
[373547302,1753036256454,-480.0,0.00019178,2]
[373547304,1753036256463,-411.0423096,0.00019178,2]
[373547306,1753036256472,-460.0,0.00019178,2]
[373547308,1753036256482,-151.0,0.00019178,2]
[373547310,1753036256491,-480.0,0.00019178,2]
[373547312,1753036256500,-480.0,0.00019178,2]
[373547314,1753036256511,-480.0,0.00019178,2]
[373547316,1753036256520,-480.0,0.00019178,2]
[373547318,1753036256530,-463.86585828,0.00019178,2]
[373547320,1753036256539,-500.0,0.00019178,2]
[373547322,1753036256548,-500.0,0.00019178,2]
[373547324,1753036256561,-480.0,0.00019178,2]
[373547326,1753036256570,-484.71824688,0.00019178,2]
[373547328,1753036256579,-3792.78,0.00019178,2]
[373547330,1753036256588,-480.0,0.00019178,2]
[373547332,1753036256600,-797.95,0.00019178,2]
[373547335,1753036256609,-480.0,0.00019178,2]
[373547337,1753036256618,-518.27,0.00019178,2]
[373547339,1753036256627,-480.0,0.00019178,2]
[373547341,1753036256636,-1444.21,0.00019178,2]
[373547343,1753036256646,-971.1,0.00019178,2]
[373547345,1753036256655,-480.0,0.00019178,2]
[373547346,1753036256664,-480.0,0.00019178,2]
[373547348,1753036256673,-816.22,0.00019178,2]
[373547351,1753036256682,-480.0,0.00019178,2]
[373547352,1753036256691,-480.0,0.00019178,2]
[373547355,1753036256700,-1337.48,0.00019178,2]
[373547357,1753036256710,-480.0,0.00019178,2]
[373547358,1753036256718,-480.0,0.00019178,2]
[373547360,1753036256727,-1191.2,0.00019178,2]
[373547363,1753036256737,-480.0,0.00019178,2]
[373547365,1753036256747,-480.0,0.00019178,2]
[373547366,1753036256757,-5916.09,0.00019178,2]
[373547369,1753036256766,-462.41215378,0.00019178,2]
[373547371,1753036256775,-480.0,0.00019178,2]
[373547373,1753036256784,-480.0,0.00019178,2]
[373547375,1753036256794,-500.0,0.00019178,2]
[373547376,1753036256803,-500.0,0.00019178,2]
[373547378,1753036256813,-578.52,0.00019178,2]
[373547381,1753036256822,-543.72,0.00019178,2]
[373547382,1753036256831,-480.0,0.00019178,2]
[373547384,1753036256841,-480.0,0.00019178,2]
[373547386,1753036256850,-200.0,0.00019178,2]
[373547388,1753036256859,-480.0,0.00019178,2]
[373547390,1753036256868,-458.88178926,0.00019178,2]
[373547392,1753036256878,-480.0,0.00019178,2]
[373547394,1753036256887,-500.0,0.00019178,2]
[373547396,1753036256896,-450.0,0.00019178,2]
[373547398,1753036256906,-480.0,0.00019178,2]
[373547401,1753036256916,-745.71,0.00019178,2]
[373547403,1753036256925,-480.0,0.00019178,2]
[373547405,1753036256934,-150.0,0.00019178,2]
[373547407,1753036256943,-480.0,0.00019178,2]
[373547409,1753036256953,-480.0,0.00019178,2]
[373547411,1753036256963,-203.30201587,0.00019178,2]
[373547413,1753036256974,-480.0,0.00019178,2]
[373547415,1753036256983,-480.0,0.00019178,2]
[373547417,1753036256992,-751.72,0.00019178,2]
[373547419,1753036257002,-460.0,0.00019178,2]
[373547421,1753036257012,-3937.93,0.00019178,2]
[373547423,1753036257022,-1206.42,0.00019178,2]
[373547425,1753036257031,-480.0,0.00019178,2]
[373547426,1753036257041,-461.9673348,0.00019178,2]
[373547428,1753036257050,-480.0,0.00019178,2]
[373547430,1753036257059,-462.55802995,0.00019178,2]
[373547433,1753036257068,-480.0,0.00019178,2]
[373547435,1753036257078,-480.0,0.00019178,2]
[373547437,1753036257087,-480.0,0.00019178,2]
[373547438,1753036257099,-380.0,0.00019178,2]
[373547440,1753036257108,-2877.54,0.00019178,2]
[373547442,1753036257117,-480.0,0.00019178,2]
[373547444,1753036257127,-500.0,0.00019178,2]
[373547446,1753036257136,-480.0,0.00019178,2]
[373547448,1753036257145,-480.0,0.00019178,2]
[373547450,1753036257154,-1144.86,0.00019178,2]
[373547452,1753036257163,-480.0,0.00019178,2]
[373547454,1753036257172,-480.0,0.00019178,2]
[373547456,1753036257182,-461.16768021,0.00019178,2]
[373547458,1753036257191,-480.0,0.00019178,2]
[373547460,1753036257199,-153.50054245,0.00019178,2]
[373547462,1753036257209,-480.0,0.00019178,2]
[373547464,1753036257219,-305.26608981,0.00019178,2]
[373547466,1753036257229,-862.11,0.00019178,2]
[373547469,1753036257238,-500.0,0.00019178,2]
[373547471,1753036257247,-480.0,0.00019178,2]
[373547473,1753036257256,-1530.12,0.00019178,2]
[373547474,1753036257266,-480.0,0.00019178,2]
[373547476,1753036257275,-480.0,0.00019178,2]
[373547478,1753036257284,-480.0,0.00019178,2]
[373547480,1753036257295,-460.0,0.00019178,2]
[373547482,1753036257304,-480.0,0.00019178,2]
[373547484,1753036257313,-480.0,0.00019178,2]
[373547486,1753036257322,-1181.85,0.00019178,2]
[373547488,1753036257331,-480.0,0.00019178,2]
[373547491,1753036257341,-480.0,0.00019178,2]
[373547493,1753036257352,-480.0,0.00019178,2]
[373547495,1753036257362,-150.0,0.00019178,2]
[373547497,1753036257372,-480.0,0.00019178,2]
[373547499,1753036257382,-482.71118561,0.00019178,2]
[373547501,1753036257391,-150.0,0.00019178,2]
[373547503,1753036257400,-1259.07,0.00019178,2]
[373547505,1753036257410,-480.0,0.00019178,2]
[373547507,1753036257419,-480.0,0.00019178,2]
[373547509,1753036257428,-480.0,0.00019178,2]
[373547511,1753036257437,-1026.21,0.00019178,2]
[373547513,1753036257447,-500.0,0.00019178,2]
[373547515,1753036257456,-788.67,0.00019178,2]
[373547517,1753036257465,-480.0,0.00019178,2]
[373547519,1753036257475,-1828.57,0.00019178,2]
[373547521,1753036257486,-3495.28,0.00019178,2]
[373547523,1753036257495,-500.0,0.00019178,2]
[373547525,1753036257504,-480.0,0.00019178,2]
[373547527,1753036257513,-462.72237246,0.00019178,2]
[373547529,1753036257523,-463.83266185,0.00019178,2]
[373547531,1753036257532,-480.0,0.00019178,2]
[373547533,1753036257540,-480.0,0.00019178,2]
[373547535,1753036257549,-480.0,0.00019178,2]
[373547537,1753036257559,-1030.13,0.00019178,2]
[373547539,1753036257568,-480.0,0.00019178,2]
[373547541,1753036257577,-480.0,0.00019178,2]
[373547543,1753036257587,-480.0,0.00019178,2]
[373547545,1753036257596,-460.0,0.00019178,2]
[373547547,1753036257606,-480.0,0.00019178,2]
[373547549,1753036257615,-461.69213857,0.00019178,2]
[373547551,1753036257625,-480.0,0.00019178,2]
[373547553,1753036257634,-1159.96,0.00019178,2]
[373547555,1753036257643,-827.58,0.00019178,2]
[373547557,1753036257653,-638.66,0.00019178,2]
[373547559,1753036257662,-813.99,0.00019178,2]
[373547561,1753036257672,-717.37,0.00019178,2]
[373547563,1753036257682,-480.0,0.00019178,2]
[373547565,1753036257691,-480.0,0.00019178,2]
[373547567,1753036257700,-440.0,0.00019178,2]
[373547569,1753036257710,-1071.69,0.00019178,2]
[373547571,1753036257719,-480.0,0.00019178,2]
[373547573,1753036257728,-500.0,0.00019178,2]
[373547575,1753036257738,-480.0,0.00019178,2]
[373547577,1753036257747,-480.0,0.00019178,2]
[373547579,1753036257756,-731.4,0.00019178,2]
[373547581,1753036257765,-1242.48,0.00019178,2]
[373547583,1753036257774,-480.0,0.00019178,2]
[373547585,1753036257784,-480.0,0.00019178,2]
[373547587,1753036257793,-460.0,0.00019178,2]
[373547589,1753036257803,-480.0,0.00019178,2]
[373547591,1753036257812,-506.17,0.00019178,2]
[373547593,1753036257821,-7669.85,0.00019178,2]
[373547595,1753036257831,-480.0,0.00019178,2]
[373547597,1753036257840,-812.33,0.00019178,2]
[373547599,1753036257850,-463.25577651,0.00019178,2]
[373547601,1753036257859,-480.0,0.00019178,2]
[373547603,1753036257869,-480.0,0.00019178,2]
[373547605,1753036257879,-480.0,0.00019178,2]
[373547607,1753036257888,-150.0,0.00019178,2]
[373547609,1753036257897,-480.0,0.00019178,2]
[373547611,1753036257907,-480.0,0.00019178,2]
[373547613,1753036257916,-1573.39,0.00019178,2]
[373547615,1753036257926,-15311.51,0.00019178,2]
[373547617,1753036257935,-480.0,0.00019178,2]
[373547619,1753036257944,-529.42,0.00019178,2]
[373547621,1753036257953,-2702.0,0.00019178,2]
[373547623,1753036257965,-480.0,0.00019178,2]
[373547625,1753036257974,-500.0,0.00019178,2]
[373547627,1753036257983,-500.0,0.00019178,2]
[373547629,1753036257992,-480.0,0.00019178,2]
[373547631,1753036258003,-480.0,0.00019178,2]
[373547633,1753036258012,-1580.0,0.00019178,2]
[373547635,1753036258021,-444.96261787,0.00019178,2]
[373547637,1753036258030,-480.0,0.00019178,2]
[373547639,1753036258042,-480.0,0.00019178,2]
[373547641,1753036258051,-480.0,0.00019178,2]
[373547643,1753036258061,-480.0,0.00019178,2]
[373547645,1753036258070,-151.0,0.00019178,2]
[373547647,1753036258079,-151.0,0.00019178,2]
[373547649,1753036258089,-460.0,0.00019178,2]
[373547651,1753036258099,-1204.82,0.00019178,2]
[373547653,1753036258109,-151.0,0.00019178,2]
[373547655,1753036258119,-533.62,0.00019178,2]
[373547657,1753036258129,-587.84,0.00019178,2]
[373547659,1753036258139,-480.0,0.00019178,2]
[373547661,1753036258148,-151.0,0.00019178,2]
[373547663,1753036258158,-3789.05,0.00019178,2]
[373547665,1753036258168,-460.89400299,0.00019178,2]
[373547667,1753036258177,-480.0,0.00019178,2]
[373547669,1753036258187,-12.70598656,0.00019178,2]
[373547720,1753036258839,-1296.79491617,0.00019178,2]
[373548381,1753036409066,1000.0,0.00030136,120]
[373548382,1753036444846,156.05,0.000229,31]
[373548383,1753036444927,156.05,0.000229,31]
[373548384,1753036444981,156.05,0.000229,31]
[373548385,1753036445055,156.05,0.000229,31]
[373548386,1753036445123,156.05,0.000229,31]
[373548387,1753036445181,156.05,0.000229,31]
[373548388,1753036445542,156.05,0.000229,31]
[373548404,1753036743375,-208.73043567,0.000175,2]
[373548418,1753036918299,389.02,0.00024809,120]
[373548419,1753036918602,389.02,0.00027064,120]
[373548421,1753037130120,-150.0,0.00017334,2]
[373548422,1753037130141,-150.0,0.00017334,2]
[373548423,1753037130162,-150.0,0.00017334,2]
[373548424,1753037130183,-274.63634728,0.00017334,2]
[373548425,1753037130207,-150.0,0.00017334,2]
[373548426,1753037130228,-150.0,0.00017334,2]
[373548427,1753037130250,-293.0,0.000175,2]
[373548428,1753037130271,-822.01690857,0.00017589,2]
[373548430,1753037160289,-200.0,0.00016679,2]
[373548431,1753037165842,305.62,0.00013699,2]
[373548434,1753037181130,1000.0,0.00030136,120]
[373548435,1753037242093,-309.0,0.00016679,2]
[373548436,1753037242114,-200.00003,0.00016679,2]
[373548437,1753037242134,-1320.735135,0.00017501,2]
[373548438,1753037242156,-150.0,0.00017816,2]
[373548439,1753037242176,-152.77348165,0.00017848,2]
[373548440,1753037242198,-399.02,0.00017907,2]
[373548441,1753037242220,-150.0,0.00017929,2]
[373548442,1753037242245,-1954.4549976,0.00017929,2]
[373548454,1753037422039,164.0976,0.00023,30]
[373548455,1753037422274,164.0976,0.00023,30]
[373548456,1753037422668,164.0976,0.00023,30]
[373548457,1753037423427,164.0976,0.00023,30]
[373548458,1753037424391,164.09764,0.00023,30]
[373548478,1753037431795,-152.77348165,0.00017835,2]
[373548480,1753037431805,-583.26339743,0.00017867,2]
[373548483,1753037431820,-1088.80992503,0.00017867,2]
[373548511,1753037432799,-1854.57811164,0.00017867,2]
[373548512,1753037432810,-701.86064444,0.00017867,2]
[373548513,1753037432853,-3610.64792146,0.00017867,2]
[373548514,1753037432863,-1159.3250024,0.00017929,2]
[373548515,1753037432873,-1000.0,0.00017935,2]
[373548516,1753037432882,-300.0,0.00017935,2]
[373548517,1753037432891,-464.48,0.00017941,2]
[373548518,1753037432901,-300.0,0.00017962,2]
[373548519,1753037432910,-1200.0,0.00017969,2]
[373548520,1753037432919,-1270.98,0.0001797,2]
[373548521,1753037432928,-540.51,0.00018002,2]
[373548522,1753037432937,-1200.0,0.00018021,2]
[373548523,1753037432947,-666.0,0.00018022,2]
[373548524,1753037432956,-200.0,0.00018038,2]
[373548525,1753037432966,-389.02,0.00018043,2]
[373548526,1753037432975,-300.0,0.00018083,2]
[373548527,1753037432984,-300.0,0.00018083,2]
[373548528,1753037432993,-151.0,0.00018084,2]
[373548529,1753037433002,-151.0,0.00018084,2]
[373548530,1753037433012,-151.0,0.00018084,2]
[373548531,1753037433021,-261.91577644,0.00018084,2]
[373548532,1753037433030,-6295.21,0.00018094,2]
[373548533,1753037433039,-2200.70535633,0.00018102,2]
[373548534,1753037433051,-911.9287111,0.00018102,2]
[373548535,1753037433061,-231.28369723,0.00018102,2]
[373548536,1753037433070,-231.28369723,0.00018102,2]
[373548537,1753037433080,-359.76179104,0.00018102,2]
[373548538,1753037433090,-235.57,0.0001814,2]
[373548539,1753037433099,-150.0,0.00018297,2]
[373548540,1753037433109,-264.78,0.00018329,2]
[373548541,1753037433119,-249.98,0.00018403,2]
[373548542,1753037433129,-723.22,0.00018478,2]
[373548543,1753037433138,-164.41,0.000185,2]
[373548544,1753037433148,-203.15,0.00018572,2]
[373548545,1753037433158,-239.84119403,0.0001865,2]
[373548546,1753037433168,-168.26,0.00018663,2]
[373548547,1753037433178,-1510.47,0.000187,2]
[373548548,1753037433188,-150.0,0.00018779,2]
[373548549,1753037433198,-287.0,0.0001878,2]
[373548550,1753037433207,-209.228169,0.00018794,2]
[373548551,1753037433217,-1510.47,0.000188,2]
[373548552,1753037433227,-814.69,0.00018853,2]
[373548553,1753037433236,-350.0,0.00018853,2]
[373548554,1753037433246,-264.92361014,0.000189,2]
[373548555,1753037433256,-1510.47,0.000189,2]
[373548556,1753037433265,-200.0,0.00018933,2]
[373548557,1753037433275,-692.8286496,0.00018934,2]
[373548558,1753037433287,-264.92361004,0.00018934,2]
[373548559,1753037433300,-168.0,0.00018944,2]
[373548560,1753037433309,-200.0,0.00018966,2]
[373548561,1753037433319,-264.92361004,0.00018969,2]
[373548562,1753037433332,-200.0,0.00018974,2]
[373548563,1753037433341,-210.86573235,0.00018986,2]
[373548564,1753037433351,-1067.06,0.0001899,2]
[373548565,1753037433799,-476.8747822,0.0001899,2]
[373548566,1753037433809,-839.31074571,0.0001899,2]
[373548567,1753037433819,-160.0,0.0001899,2]
[373548568,1753037433829,-692.8286496,0.00018992,2]
[373548569,1753037433838,-692.8286496,0.00018999,2]
[373548570,1753037433847,-1000.0,0.00018999,2]
[373548571,1753037433857,-20234.62238416,0.00019,8]
[373548572,1753037433908,-920.06947041,0.00019,8]
[373548573,1753037433931,-2190.25189051,0.00019,8]
[373548574,1753037433942,-1886.39434612,0.00019,8]
[373548575,1753037433953,-52.9508276,0.00019,8]
[373548576,1753037433963,-336.50075427,0.00019,4]
[373548577,1753037433974,-1599.23758378,0.00019,4]
[373548578,1753037433984,-264.92361004,0.00019003,2]
[373548579,1753037433993,-878.168,0.00019016,2]
[373548580,1753037434003,-264.78,0.00019016,2]
[373548581,1753037434011,-465.17,0.00019028,2]
[373548582,1753037434021,-264.92361004,0.00019038,2]
[373548583,1753037434031,-235.57,0.00019047,2]
[373548584,1753037434040,-962.09907172,0.00019067,2]
[373548585,1753037434050,-916.39887,0.0001907,2]
[373548586,1753037434059,-264.92361004,0.00019072,2]
[373548587,1753037434068,-157.37225873,0.00019078,2]
[373548588,1753037434078,-201.28511382,0.00019078,2]
[373548589,1753037434087,-489.55418548,0.00019078,2]
[373548590,1753037434097,-185.42581838,0.00019078,2]
[373548591,1753037434106,-4800.06951042,0.00019078,2]
[373548592,1753037437754,-199.93048958,0.00019078,2]
[373548593,1753037437764,-432.1781654,0.00019078,2]
[373548594,1753037437775,-891.88415061,0.00019078,2]
[373548595,1753037437811,-1175.93768399,0.00019078,2]
[373548596,1753037437821,-962.09907168,0.00019079,2]
[373548597,1753037437831,-2256.61087921,0.00019087,2]
[373548598,1753037437842,-962.09907168,0.00019091,2]
[373548599,1753037437851,-20000.0,0.000191,2]
[373548600,1753037437861,-1510.47,0.000191,2]
[373548601,1753037437870,-1067.05,0.000191,2]
[373548602,1753037437880,-962.09907168,0.00019103,2]
[373548603,1753037437889,-264.92361004,0.00019107,2]
[373548604,1753037437899,-962.09907168,0.00019115,2]
[373548605,1753037437908,-489.55418546,0.00019127,2]
[373548606,1753037437919,-962.09907168,0.00019128,2]
[373548607,1753037437928,-962.09907168,0.0001914,2]
[373548608,1753037437938,-264.92361004,0.00019141,2]
[373548609,1753037437948,-962.09907168,0.00019152,2]
[373548610,1753037437958,-962.09907168,0.00019164,2]
[373548611,1753037437968,-59511.814252,0.00019167,2]
[373548612,1753037437979,-1374.1287309,0.00019167,2]
[373548613,1753037437988,-1588.3683355,0.00019167,2]
[373548614,1753037437997,-567.66,0.00019168,3]
[373548615,1753037438007,-171.59,0.00019168,2]
[373548616,1753037438016,-424.92,0.00019168,2]
[373548617,1753037438025,-221.69001627,0.00019168,2]
[373548618,1753037438035,-295.68076164,0.00019173,2]
[373548619,1753037438044,-479.52363615,0.00019173,2]
[373548620,1753037438054,-500.0,0.00019173,2]
[373548621,1753037438063,-500.0,0.00019173,2]
[373548622,1753037438073,-500.0,0.00019173,2]
[373548623,1753037438082,-500.0,0.00019173,2]
[373548624,1753037438091,-500.0,0.00019173,2]
[373548625,1753037438100,-500.0,0.00019173,2]
[373548626,1753037438110,-489.55418546,0.00019175,2]
[373548627,1753037438120,-264.92361004,0.00019176,2]
[373548628,1753037438129,-962.09907168,0.00019176,2]
[373548629,1753037438138,-800.24073281,0.00019177,2]
[373548630,1753037438147,-1000.0,0.00019177,2]
[373548631,1753037438157,-378.49201934,0.00019177,2]
[373548632,1753037438167,-300.0,0.00019177,2]
[373548633,1753037438177,-2000.0,0.00019177,2]
[373548634,1753037438187,-300.0,0.00019177,2]
[373548635,1753037438197,-223.6429012,0.00019177,2]
[373548636,1753037438207,-500.0,0.00019177,2]
[373548637,1753037438218,-266.63509459,0.00019177,2]
[373548638,1753037438227,-409.62864396,0.00019177,2]
[373548639,1753037438237,-480.0,0.00019178,2]
[373548640,1753037438246,-480.0,0.00019178,2]
[373548641,1753037438255,-480.0,0.00019178,2]
[373548642,1753037438264,-480.0,0.00019178,2]
[373548643,1753037438274,-480.0,0.00019178,2]
[373548644,1753037438283,-480.0,0.00019178,2]
[373548645,1753037438297,-151.0,0.00019178,2]
[373548646,1753037438306,-151.0,0.00019178,2]
[373548647,1753037438316,-480.0,0.00019178,2]
[373548648,1753037438325,-525.5,0.00019178,2]
[373548649,1753037438336,-480.0,0.00019178,2]
[373548650,1753037438345,-460.0,0.00019178,2]
[373548651,1753037438355,-480.0,0.00019178,2]
[373548652,1753037438366,-460.0,0.00019178,2]
[373548653,1753037438375,-480.0,0.00019178,2]
[373548654,1753037438385,-460.0,0.00019178,2]
[373548655,1753037438394,-480.0,0.00019178,2]
[373548657,1753037438403,-480.0,0.00019178,2]
[373548658,1753037438413,-480.0,0.00019178,2]
[373548659,1753037438422,-480.0,0.00019178,2]
[373548660,1753037438432,-480.0,0.00019178,2]
[373548661,1753037438442,-480.0,0.00019178,2]
[373548662,1753037438451,-460.0,0.00019178,2]
[373548663,1753037438461,-480.0,0.00019178,2]
[373548664,1753037438471,-460.0,0.00019178,2]
[373548665,1753037438481,-480.0,0.00019178,2]
[373548666,1753037438490,-480.0,0.00019178,2]
[373548667,1753037438500,-480.0,0.00019178,2]
[373548668,1753037438510,-480.0,0.00019178,2]
[373548669,1753037438519,-525.88868433,0.00019178,2]
[373548670,1753037438528,-464.18498295,0.00019178,2]
[373548671,1753037438538,-551.56295029,0.00019178,2]
[373548672,1753037438547,-480.0,0.00019178,2]
[373548673,1753037438557,-480.0,0.00019178,2]
[373548675,1753037438566,-460.0,0.00019178,2]
[373548676,1753037438576,-480.0,0.00019178,2]